bitfinex/quotes_SOLUSD_20240818
["timestamp","ask_amount","ask_price","bid_price","bid_amount"]
[1723967366618,0.37647,141.93,141.86,20.0]
[1723967368536,1.35035191,141.93,141.86,20.0]
[1723967368727,15.7769,141.92,141.86,20.0]
[1723967370534,15.7769,141.92,141.87,9.35]
[1723967371843,6.2609,141.95,141.89,9.35]
[1723967372041,6.2609,141.95,141.9,45.0]
[1723967372227,6.2609,141.95,141.88,45.0]
[1723967372429,6.2609,141.95,141.89,20.0]
[1723967372632,6.2609,141.95,141.9,45.0]
[1723967372852,6.2609,141.95,141.91,9.35]
[1723967374318,15.7769,141.96,141.91,9.35]
[1723967374523,15.7769,141.96,141.92,45.0]
[1723967380835,15.7769,141.96,141.9,9.35]
[1723967383437,9.47549,141.94,141.83,16.2933259]
[1723967383651,0.12549,141.93,141.83,7.37134806]
[1723967383828,0.12549,141.94,141.86,9.35]
[1723967384029,0.37647,141.94,141.86,9.35]
[1723967384248,0.12549,141.93,141.86,9.35]
[1723967384755,0.25098,141.94,141.86,9.35]
[1723967384937,0.12549,141.94,141.86,9.35]
[1723967385132,0.25098,141.94,141.86,9.35]
[1723967385456,0.25098,141.94,141.87,45.0]
[1723967397155,13.3595,141.95,141.88,9.35]
[1723967397661,6.3147,141.95,141.88,9.35]
[1723967404451,0.97388191,141.94,141.88,9.35]
[1723967405965,13.3596,141.95,141.88,9.35]
[1723967406174,13.3596,141.95,141.87,45.0]
[1723967406175,8.01918191,141.94,141.87,45.0]
[1723967406351,8.14467191,141.94,141.87,45.0]
[1723967406552,9.47549,141.93,141.84,9.35]
[1723967406753,0.97388191,141.92,141.85,45.0]
[1723967407073,22.5643,141.91,141.85,45.0]
[1723967408245,22.5643,141.91,141.86,9.35]
[1723967412256,22.5643,141.91,141.84,9.35]
[1723967413574,22.5643,141.91,141.86,9.35]
[1723967428461,6.1312,141.91,141.88,9.35]
[1723967429159,21.8184,141.95,141.88,9.35]
[1723967429357,21.8184,141.95,141.9,9.35]
[1723967436594,1.09937191,141.94,141.87,9.35]
[1723967437690,0.12549,141.94,141.87,9.35]
[1723967437992,0.25098,141.94,141.87,9.35]
[1723967438864,7.29618,141.94,141.85,15.7878]
[1723967439068,7.29618,141.94,141.87,9.35]
[1723967439271,9.35,141.91,141.82,8.43086673]
[1723967439466,1.09937191,141.9,141.82,9.35]
[1723967439767,10.32388191,141.89,141.82,9.35]
[1723967440796,6.1537,141.88,141.82,9.35]
[1723967440985,0.97388191,141.87,141.82,9.35]
[1723967442882,6.1537,141.88,141.82,9.35]
[1723967445696,6.1537,141.88,141.83,45.0]
[1723967446979,6.1537,141.88,141.84,9.35]
[1723967450176,6.1537,141.88,141.8,405.837044]
[1723967450177,0.97388191,141.87,141.82,9.35]
[1723967453922,6.1537,141.88,141.82,9.35]
[1723967458293,6.1537,141.88,141.83,45.0]
[1723967466496,6.1537,141.88,141.83,42.8367332]
[1723967469194,6.1537,141.88,141.84,9.35]
[1723967473116,6.1537,141.88,141.81,9.35]
[1723967473322,0.97388191,141.87,141.81,9.35]
[1723967473944,0.97388191,141.87,141.8,390.445844]
[1723967474132,7.42577,141.86,141.8,0.145844]
[1723967474311,0.97388191,141.85,141.8,0.145844]
[1723967474511,7.42577,141.86,141.8,0.145844]
[1723967475322,0.97388191,141.85,141.8,0.145844]
[1723967475697,7.42577,141.86,141.8,0.145844]
[1723967476097,0.25098,141.86,141.8,0.145844]
[1723967476329,36.0618,141.87,141.8,9.495844]
[1723967476712,36.0618,141.87,141.81,45.0]
[1723967477220,16.0618,141.87,141.81,45.0]
[1723967478101,16.0618,141.87,141.82,9.35]
[1723967478615,16.0618,141.87,141.83,45.0]
[1723967478818,16.0618,141.87,141.82,9.35]
[1723967482900,6.4811,141.86,141.8,0.145844]
[1723967483132,10.82584191,141.85,141.8,0.145844]
[1723967483800,17.87564191,141.85,141.8,0.145844]
[1723967485434,1.35035191,141.85,141.8,0.145844]
[1723967485738,0.12549,141.85,141.8,0.145844]
[1723967486238,6.4811,141.86,141.8,0.145844]
[1723967487249,0.97388191,141.85,141.8,0.145844]
[1723967487549,6.4811,141.86,141.8,9.495844]
[1723967489732,6.4811,141.86,141.82,9.35]
[1723967490328,0.97388191,141.85,141.81,45.0]
[1723967490528,6.4811,141.86,141.8,0.145844]
[1723967490754,6.4811,141.86,141.8,45.145844]
[1723967492827,6.4811,141.86,141.81,9.35]
[1723967493049,6.0913,141.9,141.83,9.35]
[1723967493253,6.0913,141.9,141.84,45.0]
[1723967494752,6.0913,141.9,141.83,9.35]
[1723967494957,0.25098,141.89,141.83,9.35]
[1723967495943,0.25098,141.89,141.81,9.35]
[1723967496147,0.25098,141.89,141.82,45.0]
[1723967496360,1.22486191,141.89,141.82,45.0]
[1723967496948,0.25098,141.89,141.82,45.0]
[1723967497158,21.1449,141.87,141.8,0.145844]
[1723967497455,10.70035191,141.86,141.8,0.145844]
[1723967499153,0.12549,141.85,141.8,0.145844]
[1723967500937,9.35,141.84,141.8,0.145844]
[1723967501156,7.19067191,141.83,141.8,0.145844]
[1723967501353,0.97388191,141.82,141.8,0.145844]
[1723967506743,15.0536,141.81,141.8,0.145844]
[1723967507057,15.43007,141.81,141.8,0.145844]
[1723967507255,15.55556,141.81,141.8,0.145844]
[1723967508539,22.60716,141.81,141.8,0.145844]
[1723967509541,15.55556,141.81,141.8,0.145844]
[1723967510744,31.95716,141.81,141.8,0.145844]
[1723967510941,31.95716,141.81,141.68,13.50066296]
[1723967510942,0.12549,141.79,141.68,13.50066296]
[1723967511261,0.12549,141.79,141.7,9.35]
[1723967511262,10.70035191,141.79,141.7,9.35]
[1723967511473,0.12549,141.78,141.7,9.35]
[1723967511640,0.37647,141.78,141.7,9.35]
[1723967520348,17.50337191,141.77,141.68,9.35]
[1723967520558,0.12549,141.75,141.68,9.35]
[1723967520776,6.29849,141.75,141.67,15.728]
[1723967520981,0.25098,141.74,141.67,15.728]
[1723967521682,0.25098,141.74,141.68,9.35]
[1723967523057,6.29849,141.75,141.68,9.35]
[1723967525265,0.25098,141.74,141.68,9.35]
[1723967525466,0.97388191,141.73,141.68,9.35]
[1723967527078,0.25098,141.74,141.68,9.35]
[1723967527994,6.29849,141.75,141.68,9.35]
[1723967528162,7.27237191,141.75,141.68,9.35]
[1723967529389,6.29849,141.75,141.68,9.35]
[1723967530367,6.29849,141.75,141.67,15.728]
[1723967530574,6.29849,141.75,141.65,10.2010024]
[1723967530575,0.12549,141.73,141.65,10.2010024]
[1723967530791,1.09937191,141.73,141.65,10.2010024]
[1723967530991,0.37647,141.72,141.65,10.2010024]
[1723967532904,0.12549,141.71,141.65,0.8510024]
[1723967533080,1.09937191,141.71,141.65,0.8510024]
[1723967537990,0.12549,141.7,141.65,0.8510024]
[1723967538302,1.35035191,141.7,141.65,0.8510024]
[1723967538472,21.35035191,141.7,141.65,0.8510024]
[1723967540401,0.12549,141.69,141.65,0.8510024]
[1723967540589,0.37647,141.69,141.65,0.8510024]
[1723967541097,0.12549,141.68,141.65,0.8510024]
[1723967541269,0.37647,141.68,141.65,0.8510024]
[1723967542701,0.12549,141.67,141.65,0.8510024]
[1723967542890,1.35035191,141.67,141.65,0.8510024]
[1723967543874,0.12549,141.66,141.65,0.8510024]
[1723967544075,0.50196,141.66,141.65,0.8510024]
[1723967544490,33.3803,141.7,141.65,0.8510024]
[1723967544693,0.37647,141.69,141.65,0.8510024]
[1723967545389,33.3803,141.7,141.65,0.8510024]
[1723967545390,20.0,141.7,141.65,10.2010024]
[1723967545601,22.2537,141.72,141.65,10.2010024]
[1723967545602,20.0,141.71,141.65,10.2010024]
[1723967545813,0.97388191,141.7,141.65,0.8510024]
[1723967546003,31.604,141.72,141.65,0.8510024]
[1723967546483,0.12549,141.71,141.65,0.8510024]
[1723967547286,20.37647,141.71,141.65,0.8510024]
[1723967547513,0.12549,141.7,141.65,0.8510024]
[1723967547880,1.09937191,141.7,141.65,0.8510024]
[1723967548204,0.12549,141.69,141.65,0.8510024]
[1723967548788,0.37647,141.69,141.65,0.8510024]
[1723967549030,0.25098,141.68,141.65,0.8510024]
[1723967550011,0.25098,141.69,141.65,0.8510024]
[1723967550193,0.12549,141.68,141.65,0.8510024]
[1723967550391,0.25098,141.68,141.65,0.8510024]
[1723967554499,1.22486191,141.68,141.65,0.8510024]
[1723967554714,0.12549,141.67,141.65,0.8510024]
[1723967554896,1.22486191,141.67,141.65,0.8510024]
[1723967555288,0.25098,141.67,141.65,0.8510024]
[1723967555686,0.12549,141.68,141.65,0.8510024]
[1723967555913,0.25098,141.68,141.65,0.8510024]
[1723967560787,0.12549,141.7,141.65,0.8510024]
[1723967561114,1.47584191,141.7,141.65,0.8510024]
[1723967561488,0.50196,141.7,141.65,0.8510024]
[1723967565110,1.47584191,141.7,141.65,0.8510024]
[1723967565914,10.82584191,141.7,141.65,0.8510024]
[1723967567109,9.85196,141.7,141.65,0.8510024]
[1723967569312,0.97388191,141.69,141.65,0.8510024]
[1723967569619,0.50196,141.68,141.65,0.8510024]
[1723967572200,1.47584191,141.68,141.65,0.8510024]
[1723967572412,0.50196,141.68,141.65,0.8510024]
[1723967577515,0.37647,141.68,141.65,0.8510024]
[1723967577712,0.12549,141.67,141.65,0.8510024]
[1723967578014,0.25098,141.67,141.65,0.8510024]
[1723967578929,1.22486191,141.67,141.65,0.8510024]
[1723967581034,16.78557,141.66,141.65,0.8510024]
[1723967581213,16.91106,141.66,141.65,0.8510024]
[1723967582118,9.85196,141.66,141.65,0.8510024]
[1723967582318,0.50196,141.66,141.65,0.8510024]
[1723967583926,0.37647,141.66,141.65,0.8510024]
[1723967585313,27.3608,141.73,141.65,0.8510024]
[1723967585511,54.60098,141.71,141.65,0.8510024]
[1723967585814,20.0,141.7,141.65,0.8510024]
[1723967586014,0.25098,141.69,141.65,0.8510024]
[1723967586416,1.22486191,141.69,141.65,0.8510024]
[1723967586937,0.25098,141.68,141.65,0.8510024]
[1723967588937,0.25098,141.69,141.65,0.8510024]
[1723967591309,1.22486191,141.69,141.65,0.8510024]
[1723967591513,0.25098,141.69,141.65,0.8510024]
[1723967592837,0.12549,141.68,141.65,0.8510024]
[1723967593044,0.25098,141.68,141.65,0.8510024]
[1723967593216,0.12549,141.66,141.65,0.8510024]
[1723967593417,0.25098,141.66,141.65,0.8510024]
[1723967593626,0.50196,141.66,141.65,0.8510024]
[1723967594513,16.4077,141.69,141.65,0.8510024]
[1723967594732,0.12549,141.67,141.65,0.8510024]
[1723967598245,1.09937191,141.67,141.65,0.8510024]
[1723967598425,0.25098,141.66,141.65,0.8510024]
[1723967598824,0.25098,141.68,141.65,0.8510024]
[1723967599051,0.25098,141.67,141.65,0.8510024]
[1723967600549,0.12549,141.66,141.65,0.8510024]
[1723967600724,0.25098,141.66,141.65,0.8510024]
[1723967600919,0.50196,141.66,141.65,0.8510024]
[1723967604548,1.47584191,141.66,141.65,0.8510024]
[1723967604721,0.50196,141.66,141.65,0.8510024]
[1723967605351,0.37647,141.66,141.65,0.8510024]
[1723967605549,20.0,141.67,141.65,0.8510024]
[1723967606041,0.12549,141.67,141.65,0.8510024]
[1723967606355,0.50196,141.67,141.65,0.8510024]
[1723967606929,1.47584191,141.67,141.65,0.8510024]
[1723967607450,0.50196,141.67,141.65,0.8510024]
[1723967610041,36.22407646,141.73,141.65,0.8510024]
[1723967610240,29.47549,141.72,141.65,0.8510024]
[1723967610833,7.0572,141.7,141.65,0.8510024]
[1723967611057,20.12549,141.69,141.65,0.8510024]
[1723967611441,0.37647,141.68,141.65,0.8510024]
[1723967615643,7.0567,141.71,141.65,0.8510024]
[1723967615840,20.37647,141.7,141.65,0.8510024]
[1723967616249,0.12549,141.7,141.65,10.2010024]
[1723967616453,9.35,141.73,141.65,10.2010024]
[1723967616650,0.12549,141.72,141.65,10.2010024]
[1723967616861,7.18169,141.72,141.65,10.2010024]
[1723967617564,0.12549,141.71,141.65,10.2010024]
[1723967617748,0.37647,141.71,141.65,10.2010024]
[1723967618264,7.43317,141.71,141.65,0.8510024]
[1723967618566,1.09937191,141.7,141.65,0.8510024]
[1723967619268,0.25098,141.69,141.65,0.8510024]
[1723967620960,9.60098,141.69,141.65,0.8510024]
[1723967621261,0.12549,141.66,141.65,0.8510024]
[1723967621568,0.50196,141.66,141.65,0.8510024]
[1723967627063,7.56106,141.66,141.65,0.8510024]
[1723967627264,27.56106,141.66,141.65,0.8510024]
[1723967627474,36.91106,141.66,141.65,0.8510024]
[1723967636974,20.0,141.66,141.65,0.8510024]
[1723967637283,7.0582,141.68,141.65,0.8510024]
[1723967638673,0.12549,141.67,141.65,0.8510024]
[1723967638878,0.50196,141.67,141.65,0.8510024]
[1723967642675,1.47584191,141.67,141.65,0.8510024]
[1723967644705,10.82584191,141.67,141.65,0.8510024]
[1723967647299,7.18459,141.66,141.65,0.8510024]
[1723967647466,7.56106,141.66,141.65,0.8510024]
[1723967647669,72.56106,141.66,141.65,0.8510024]
[1723967653187,27.56106,141.66,141.65,0.8510024]
[1723967654296,72.56106,141.66,141.65,0.8510024]
[1723967655109,93.77106,141.66,141.65,0.8510024]
[1723967655289,0.12549,141.62,141.6,16.5014]
[1723967655494,1.47584191,141.62,141.57,16.2483]
[1723967658092,8.53724191,141.62,141.57,16.2483]
[1723967658308,10.82584191,141.62,141.57,16.2483]
[1723967658686,9.85196,141.62,141.57,16.2483]
[1723967659893,0.50196,141.62,141.57,16.2483]
[1723967660304,20.50196,141.62,141.57,16.2483]
[1723967662503,0.12549,141.6,141.57,16.2483]
[1723967662714,0.50196,141.6,141.57,16.2483]
[1723967666792,20.0,141.62,141.57,16.2483]
[1723967668205,0.37647,141.61,141.57,16.2483]
[1723967669888,0.12549,141.6,141.57,16.2483]
[1723967675399,0.37647,141.61,141.57,16.2483]
[1723967675400,0.12549,141.61,141.57,16.2483]
[1723967676418,0.12549,141.62,141.57,16.2483]
[1723967676605,0.25098,141.62,141.57,16.2483]
[1723967676811,0.25098,141.61,141.57,16.2483]
[1723967680008,0.25098,141.6,141.57,16.2483]
[1723967686420,0.12549,141.59,141.53,16.3349]
[1723967686609,0.12549,141.58,141.53,16.3349]
[1723967686820,0.25098,141.58,141.53,16.3349]
[1723967687127,0.25098,141.57,141.53,16.3349]
[1723967692838,0.12549,141.58,141.53,25.6849]
[1723967693046,0.25098,141.58,141.53,25.6849]
[1723967693704,0.25098,141.59,141.53,25.6849]
[1723967694634,20.12549,141.6,141.53,25.6849]
[1723967695923,0.25098,141.6,141.53,25.6849]
[1723967696638,0.12549,141.6,141.55,9.35]
[1723967696847,0.12549,141.61,141.55,9.35]
[1723967697014,20.0,141.62,141.55,9.35]
[1723967698215,0.12549,141.61,141.55,9.35]
[1723967698412,0.25098,141.61,141.55,9.35]
[1723967699160,1.22486191,141.61,141.55,9.35]
[1723967699917,0.25098,141.61,141.55,9.35]
[1723967700339,0.25098,141.6,141.53,25.6849]
[1723967700732,0.25098,141.59,141.53,25.6849]
[1723967701114,0.12549,141.58,141.53,16.3349]
[1723967702038,0.25098,141.59,141.53,16.3349]
[1723967702416,0.25098,141.59,141.53,25.6849]
[1723967703733,0.12549,141.59,141.53,25.6849]
[1723967704049,0.12549,141.6,141.53,25.6849]
[1723967707037,1.09937191,141.6,141.53,25.6849]
[1723967707540,0.12549,141.6,141.53,25.6849]
[1723967708625,0.12549,141.6,141.53,16.3349]
[1723967708822,1.09937191,141.6,141.53,16.3349]
[1723967709024,0.37647,141.59,141.53,16.3349]
[1723967712051,0.12549,141.6,141.54,9.35]
[1723967712219,0.12549,141.61,141.53,16.3349]
[1723967712220,0.37647,141.61,141.56,9.35]
[1723967713425,0.25098,141.61,141.56,9.35]
[1723967713629,0.12549,141.62,141.56,9.35]
[1723967713949,0.37647,141.62,141.56,9.35]
[1723967716635,6.3175,141.63,141.56,9.35]
[1723967716842,6.3175,141.63,141.57,45.0]
[1723967718653,6.3175,141.63,141.53,16.3349]
[1723967718654,1.09937191,141.62,141.53,16.3349]
[1723967718954,0.12549,141.61,141.53,25.6849]
[1723967720356,0.12549,141.61,141.55,9.35]
[1723967723962,0.12549,141.61,141.53,16.3349]
[1723967724257,0.12549,141.6,141.53,25.6849]
[1723967724444,0.37647,141.6,141.53,25.6849]
[1723967729244,0.37647,141.6,141.51,0.8510024]
[1723967729450,0.37647,141.6,141.53,9.35]
[1723967731450,15.76359,141.61,141.53,9.35]
[1723967731647,15.76359,141.61,141.55,9.35]
[1723967732165,15.6381,141.61,141.55,9.35]
[1723967732868,6.3175,141.63,141.57,9.35]
[1723967733361,6.3175,141.63,141.59,9.35]
[1723967735376,15.6381,141.65,141.58,45.0]
[1723967735545,15.6381,141.65,141.59,9.35]
[1723967736249,15.6381,141.65,141.59,39.35]
[1723967737851,6.5124,141.66,141.61,9.35]
[1723967738461,6.5124,141.66,141.61,39.35]
[1723967738859,15.6381,141.69,141.63,9.35]
[1723967739459,15.6381,141.69,141.63,39.35]
[1723967740284,6.5124,141.7,141.65,9.35]
[1723967741744,0.97388191,141.69,141.63,39.35]
[1723967741948,6.5124,141.7,141.63,39.35]
[1723967743076,6.5124,141.7,141.63,9.35]
[1723967753387,1.09937191,141.69,141.59,0.12549]
[1723967753588,1.22486191,141.69,141.62,9.35]
[1723967754485,0.25098,141.69,141.63,30.0]
[1723967754873,1.22486191,141.69,141.59,0.25098]
[1723967755068,1.22486191,141.69,141.62,9.35]
[1723967755685,0.25098,141.69,141.62,9.35]
[1723967755887,0.12549,141.68,141.62,9.35]
[1723967756670,0.25098,141.68,141.62,9.35]
[1723967758396,6.5124,141.7,141.64,9.35]
[1723967761602,0.50196,141.69,141.64,9.35]
[1723967761986,0.37647,141.69,141.64,9.35]
[1723967762191,0.12549,141.69,141.64,9.35]
[1723967762387,6.5124,141.7,141.64,9.35]
[1723967764106,0.12549,141.69,141.64,9.35]
[1723967764317,0.50196,141.69,141.64,9.35]
[1723967771403,0.12549,141.69,141.64,9.35]
[1723967771709,6.5124,141.7,141.64,9.35]
[1723967772906,6.5124,141.7,141.57,13.44351506]
[1723967772907,6.5124,141.7,141.66,9.35]
[1723967786092,15.6381,141.72,141.67,45.0]
[1723967787512,15.6381,141.72,141.68,9.35]
[1723967788199,6.1922,141.73,141.68,9.35]
[1723967788405,6.1922,141.73,141.7,9.35]
[1723967788801,6.1922,141.73,141.68,9.35]
[1723967789098,6.1922,141.73,141.69,45.0]
[1723967789510,6.1922,141.73,141.68,9.35]
[1723967789725,6.1922,141.73,141.66,9.35]
[1723967790029,6.1922,141.73,141.67,81.24041333]
[1723967790329,6.1922,141.73,141.67,75.0]
[1723967790916,6.1922,141.73,141.67,81.24041093]
[1723967791896,6.1922,141.73,141.67,51.24041093]
[1723967793397,1.22486191,141.72,141.67,6.24041093]
[1723967793610,1.22486191,141.72,141.65,6.24041093]
[1723967793817,1.22486191,141.72,141.66,51.24041093]
[1723967794031,1.22486191,141.72,141.66,45.0]
[1723967794513,1.22486191,141.72,141.65,45.0]
[1723967794725,1.22486191,141.72,141.66,6.24073382]
[1723967794907,1.22486191,141.72,141.65,45.0]
[1723967795110,1.09937191,141.72,141.66,15.59073382]
[1723967795313,6.31769,141.73,141.67,45.0]
[1723967797515,0.97388191,141.72,141.67,45.0]
[1723967797829,0.12549,141.71,141.64,15.59089251]
[1723967798033,0.25098,141.71,141.65,51.24089251]
[1723967798211,0.25098,141.71,141.66,6.24089251]
[1723967798717,0.25098,141.71,141.65,45.0]
[1723967802531,0.25098,141.71,141.66,6.2410517]
[1723967802731,0.25098,141.71,141.65,45.0]
[1723967802941,0.25098,141.71,141.66,6.2410493]
[1723967803145,0.12549,141.7,141.64,9.35]
[1723967803310,1.35035191,141.7,141.65,6.24109668]
[1723967803509,1.35035191,141.7,141.64,9.35]
[1723967803727,1.35035191,141.7,141.65,6.24110387]
[1723967803910,1.35035191,141.7,141.64,9.35]
[1723967804257,1.35035191,141.7,141.65,6.24110824]
[1723967804440,1.35035191,141.7,141.64,9.35]
[1723967804626,1.35035191,141.7,141.65,6.24111064]
[1723967804944,1.35035191,141.7,141.64,9.35]
[1723967805118,1.35035191,141.7,141.65,6.24110824]
[1723967805320,1.35035191,141.7,141.64,9.35]
[1723967805522,1.35035191,141.7,141.65,6.24110824]
[1723967805727,1.35035191,141.7,141.64,9.35]
[1723967805929,1.35035191,141.7,141.65,6.24111064]
[1723967806131,1.35035191,141.7,141.64,9.35]
[1723967806333,1.35035191,141.7,141.65,6.24111064]
[1723967806528,1.35035191,141.7,141.64,9.35]
[1723967806822,1.35035191,141.7,141.65,6.24110824]
[1723967807026,1.35035191,141.7,141.66,6.24110824]
[1723967807234,1.35035191,141.7,141.64,9.35]
[1723967807444,1.35035191,141.7,141.65,6.24110584]
[1723967807623,1.35035191,141.7,141.66,6.24110584]
[1723967807821,1.35035191,141.7,141.64,9.35]
[1723967808020,1.35035191,141.7,141.65,6.24111064]
[1723967808237,1.35035191,141.7,141.66,6.24111064]
[1723967808434,1.35035191,141.7,141.64,9.35]
[1723967808625,1.35035191,141.7,141.65,6.24110584]
[1723967808835,1.35035191,141.7,141.66,6.24110584]
[1723967809149,1.35035191,141.7,141.64,9.35]
[1723967809327,1.35035191,141.7,141.65,6.24111064]
[1723967809527,1.35035191,141.7,141.66,6.24111064]
[1723967809727,1.35035191,141.7,141.64,9.35]
[1723967810035,1.35035191,141.7,141.65,6.24107314]
[1723967810234,1.35035191,141.7,141.66,6.24107314]
[1723967810443,1.35035191,141.7,141.64,9.35]
[1723967810630,1.35035191,141.7,141.65,6.24111741]
[1723967810828,1.35035191,141.7,141.66,6.24111741]
[1723967811042,1.35035191,141.7,141.64,9.35]
[1723967811244,1.35035191,141.7,141.65,6.24111064]
[1723967811450,1.35035191,141.7,141.66,6.24111064]
[1723967811651,1.35035191,141.7,141.64,9.35]
[1723967811825,1.35035191,141.7,141.65,6.24110638]
[1723967811826,0.37647,141.7,141.65,6.24110638]
[1723967812025,0.37647,141.7,141.66,6.24110638]
[1723967812349,0.37647,141.7,141.64,9.35]
[1723967812533,0.37647,141.7,141.65,6.24114334]
[1723967812735,0.12549,141.71,141.66,15.59114334]
[1723967813057,15.1043,141.72,141.66,9.35]
[1723967815935,15.1043,141.72,141.67,45.0]
[1723967820037,6.1922,141.73,141.68,9.35]
[1723967820248,16.6281,141.76,141.7,9.35]
[1723967820468,15.1043,141.78,141.69,45.0]
[1723967820469,7.0532,141.78,141.72,9.35]
[1723967821161,13.612,141.79,141.72,9.35]
[1723967821958,20.0,141.78,141.72,9.35]
[1723967824661,6.81028,141.79,141.74,9.35]
[1723967825258,6.68479,141.79,141.74,9.35]
[1723967826781,6.5593,141.79,141.74,9.35]
[1723967829467,6.5593,141.79,141.73,45.0]
[1723967829468,0.97388191,141.78,141.73,45.0]
[1723967831642,0.97388191,141.78,141.72,9.35]
[1723967831855,0.12549,141.78,141.72,9.35]
[1723967832064,0.37647,141.78,141.72,9.35]
[1723967833165,7.0558,141.73,141.69,6.23830518]
[1723967833335,9.35,141.71,141.64,6.23830518]
[1723967833536,7.42247191,141.72,141.64,6.23830518]
[1723967833742,6.3231,141.72,141.65,9.35]
[1723967834041,6.3231,141.76,141.69,9.35]
[1723967834237,6.3231,141.76,141.71,9.35]
[1723967834664,9.89192203,141.8,141.73,9.35]
[1723967834665,7.0526,141.79,141.73,9.35]
[1723967835851,7.0526,141.79,141.72,45.0]
[1723967835852,1.22486191,141.78,141.72,45.0]
[1723967836057,7.0526,141.79,141.72,45.0]
[1723967836250,7.0526,141.79,141.73,9.35]
[1723967837969,29.63177,141.8,141.73,9.35]
[1723967838172,22.2031,141.8,141.75,9.35]
[1723967839853,22.2031,141.8,141.74,45.0]
[1723967840057,0.97388191,141.79,141.74,45.0]
[1723967844858,0.97388191,141.79,141.73,45.0]
[1723967847062,22.2031,141.8,141.74,9.35]
[1723967847649,22.2031,141.8,141.75,45.0]
[1723967856804,6.3231,141.8,141.76,9.35]
[1723967858082,22.5021,141.83,141.76,9.35]
[1723967858382,15.4513,141.83,141.77,45.0]
[1723967861265,22.5021,141.83,141.77,45.0]
[1723967861465,22.5021,141.83,141.76,45.0]
[1723967861980,22.5021,141.83,141.75,9.35]
[1723967861981,7.30228,141.82,141.75,9.35]
[1723967862163,17.62666191,141.81,141.72,22.44928753]
[1723967862370,17.62666191,141.81,141.73,15.58798753]
[1723967863292,7.30278,141.81,141.74,45.0]
[1723967865585,7.30278,141.81,141.74,51.23798753]
[1723967866064,0.97388191,141.8,141.74,51.23798753]
[1723967866471,0.97388191,141.8,141.74,45.0]
[1723967866686,7.30278,141.81,141.74,45.0]
[1723967869061,7.68866191,141.8,141.74,45.0]
[1723967869257,0.97388191,141.79,141.74,45.0]
[1723967872477,8.02658191,141.79,141.73,9.35]
[1723967874188,7.0527,141.79,141.73,9.35]
[1723967874992,8.02658191,141.79,141.73,9.35]
[1723967881900,8.02658191,141.79,141.73,15.58750065]
[1723967882080,8.02658191,141.79,141.73,9.35]
[1723967882992,8.02658191,141.79,141.52,157.06029217]
[1723967882993,7.0545,141.76,141.7,6.23750741]
[1723967883183,7.0545,141.76,141.67,6.23855508]
[1723967883184,37.12095191,141.75,141.67,6.23855508]
[1723967883390,7.0552,141.74,141.68,6.23855508]
[1723967883574,0.12549,141.74,141.68,6.2398076]
[1723967883776,0.12549,141.74,141.65,275.2879]
[1723967883777,1.09937191,141.74,141.67,9.35]
[1723967883980,1.09937191,141.74,141.68,6.2398076]
[1723967884193,1.09937191,141.74,141.67,9.35]
[1723967884599,1.09937191,141.74,141.67,15.58983899]
[1723967884792,1.09937191,141.74,141.67,9.35]
[1723967884996,1.09937191,141.74,141.67,15.58983899]
[1723967885297,0.12549,141.73,141.66,6.23983899]
[1723967885501,0.25098,141.73,141.67,6.23983899]
[1723967885706,0.25098,141.73,141.66,6.23983899]
[1723967885896,0.25098,141.73,141.67,6.23983899]
[1723967886208,0.25098,141.73,141.66,6.23983899]
[1723967886988,0.12549,141.74,141.67,45.0]
[1723967887197,0.37647,141.74,141.67,45.0]
[1723967887997,0.37647,141.74,141.67,54.35]